Cogmind - Beta 14 @@@ ROGUE MODE // 2024.08.12 @ 07:44:08 // Winter2019/RPGLIKE Player: osman sinnoks Result: Destroyed by G-47 Trooper with Particle Gun Performance ------------- Evolutions (2) 1000 Regions Visited (5) 1000 Robots Destroyed (37) 185 Value Destroyed (901) 901 Prototype IDs (1) 20 Alien Tech Used (0) 0 Bonus (308) 308 TOTAL SCORE: 3414 Bonus ------- High Alert Combat Kills 8 Aligned with FarCom 300 Cogmind --------- Core Integrity 0/850 Matter 300/300 Energy 155/160 System Corruption 0% Temperature Hot (265) Movement Core (50) Location -8/Materials Parts ------- > --- POWER (1) -------- Light Nuclear Core > --- PROPULSION (1) --- (None) > --- UTILITY (4) ------ Improved Heat Sink Seismic Detector Hacking Suite > --- WEAPON (2) ------- Guided Plasma Cannon > --- INVENTORY (2) ---- Targeting Computer Grenade Launcher Peak State ------------ > --- POWER ------------ Light Nuclear Core > --- PROPULSION ------- (None) > --- UTILITY ---------- Improved Heat Sink Seismic Detector Medium Armor Plating Hacking Suite > --- WEAPON ----------- Guided Plasma Cannon > --- INVENTORY -------- Targeting Computer Grenade Launcher [Rating: 20] Favorites ----------- Power Ion Engine Engine Ion Engine Power Core Light Nuclear Core Propulsion None Utility Heat Sink Device Heat Sink Hackware Hacking Suite Protection Medium Armor Plating Weapon Assault Rifle Energy Gun EM Pulse Gun Energy Cannon Guided Plasma Cannon Ballistic Gun Assault Rifle Launcher Grenade Launcher Build | -11 -10 -10 -10 -9 -8 ------- Run | Yrd Mat Min Exi Min Mat Slots Evolved 4 | 3 . . 1 . . Power . | . . . . . . Propulsion . | . . . . . . Utility 3 | 2 . . 1 . . Weapon 1 | 1 . . . . . Parts Attached 12 | 3 4 1 1 1 2 Power 2 | 1 . . . . 1 Engine 1 | 1 . . . . . Core 1 | . . . . . 1 Reactor . | . . . . . . Propulsion . | . . . . . . Treads . | . . . . . . Leg . | . . . . . . Wheel . | . . . . . . Hover . | . . . . . . Flight . | . . . . . . Utility 5 | . 2 1 . 1 1 Device 3 | . 2 . . . 1 Storage . | . . . . . . Processor . | . . . . . . Hackware 1 | . . 1 . . . Protection 1 | . . . . 1 . Artifact . | . . . . . . Weapon 5 | 2 2 . 1 . . Energy Gun 2 | 1 1 . . . . Energy Cannon 1 | . . . 1 . . Ballistic Gun 1 | 1 . . . . . Ballistic Cannon . | . . . . . . Launcher 1 | . 1 . . . . Special Weapon . | . . . . . . Impact Weapon . | . . . . . . Slashing Weapon . | . . . . . . Piercing Weapon . | . . . . . . Special Melee Weapon . | . . . . . . Unidentified Prototypes 1 | . . . 1 . . Corrupted Parts 1 | . 1 . . . . System Corruption 2 | . 2 . . . . Parts Lost 1 | . . . . . 1 Power . | . . . . . . Propulsion . | . . . . . . Utility 1 | . . . . . 1 Weapon . | . . . . . . Highest Loss Streak 1 | . . . . . 1 To Critical Strikes . | . . . . . . Average Slot Usage (%) 68 | . 60 79 66 68 74 Engine 12 | . 14 14 12 12 1 Core 1 | . . . . . 10 Device 22 | . 17 28 25 25 25 Hackware 6 | . . 8 12 12 12 Protection 2 | . . . . 5 11 Energy Gun 4 | . 12 . . . . Energy Cannon 4 | . . . 7 12 12 Ballistic Gun 9 | . 14 14 4 . . Launcher 4 | . 1 14 4 . . Peak Build Rating 20 | 3 6 8 15 16 20 Average Rating 9 | 1 4 6 11 14 18 On Entrance 7 | . 3 5 8 14 16 Naked Turns . | . . . . . . Heaviest Build 24 | 9 12 12 17 24 24 Greatest Support 18 | 13 13 13 13 18 18 Greatest Overweight (x) 1 | . . . 1 1 1 Average Overweight (x) . | . . . . . . Largest Inventory Capacity 2 | 1 2 2 2 2 2 Average Capacity 1 | 1 1 2 2 2 2 Most Carried 2 | 1 1 2 2 2 2 Average Carried 1 | . . 1 1 2 1 Final Capacity 2 | 1 2 2 2 2 2 Final Carried 2 | . 1 2 2 2 2 Class Distribution -------------------- 100% | Mutant Dominant Class ---------------- Mutant | -10/Materials Mutant | -10/Mines Mutant | -10/Exiles Mutant | -9/Mines Mutant | -8/Materials Resources | -11 -10 -10 -10 -9 -8 ----------- Run | Yrd Mat Min Exi Min Mat Matter Collected 677 | 213 250 168 . 26 20 Remotely . | . . . . . . Salvage Created 1166 | . 475 95 . 254 342 Parts 60 | . 38 11 . 5 6 Haulers Intercepted 1 | . . . . . 1 Recyclers Shooed 2 | . 2 . . . . Parts Field Recycled . | . . . . . . Retrieved Matter . | . . . . . . Parts Self-Destructed . | . . . . . . Prevented . | . . . . . . Kills | -11 -10 -10 -10 -9 -8 ------- Run | Yrd Mat Min Exi Min Mat Combat Hostiles Destroyed 32 | . 10 12 . 6 4 Guns 11 | . 7 4 . . . Cannons 8 | . . . . 5 3 AOE 11 | . 3 8 . . . Classes Destroyed 8 | . 5 2 . . 1 Builder 1 | . 1 . . . . Hauler 1 | . . . . . 1 Recycler 3 | . 2 . . 1 . Operator 2 | . 1 . . . 1 Watcher 2 | . 2 . . . . Swarmer 11 | . . 7 . 4 . Grunt 17 | . 10 1 . 2 4 Assembled 4 | . . 4 . . . Best Kill Streak 7 | . 7 5 . 5 4 Combat Bots Only 5 | . 4 5 . 4 2 Max Kills in Single Turn 3 | . 2 3 . 1 1 Gunslinging . | . . . . . . Exploded 3 | . 2 3 . . . Melee . | . . . . . . Uniques/NPCs Destroyed . | . . . . . . Combat | -11 -10 -10 -10 -9 -8 -------- Run | Yrd Mat Min Exi Min Mat Hostile Shots Fired 164 | . 64 56 . 14 30 Missed 43 | . 22 10 . 4 7 Damage Taken 1640 | . 509 695 . 99 337 Core 1251 | . 413 556 . 84 198 Absorbed by Shields . | . . . . . . Redirected to Core 956 | . 299 443 . 50 164 Ignored by Resistances 71 | . . 38 . 10 23 Core Remaining (%) 58 | 100 . . . 17 . Volleys Fired 123 | . 61 26 . 15 21 Largest 2 | . 2 2 . 1 1 Hottest 120 | . 85 50 . 120 120 Shots Fired 192 | . 122 34 . 15 21 Gun 148 | . 122 26 . . . Cannon 36 | . . . . 15 21 Launcher 8 | . . 8 . . . Special . | . . . . . . Kinetic 87 | . 61 26 . . . Thermal 57 | . 21 . . 15 21 Explosive 8 | . . 8 . . . Electromagnetic 40 | . 40 . . . . Robot Hit Streak 29 | . 6 9 . 20 29 Robot Miss Streak 6 | . 6 3 . . . Penetration Max . | . . . . . . Secondary Targets . | . . . . . . Shots Hit Robots 109 | . 67 22 . 11 9 Core Hits 57 | . 26 19 . 5 7 Critical Kills . | . . . . . . Critical Parts Destroyed . | . . . . . . Critical Strikes 4 | . 4 . . . . Burn 1 | . 1 . . . . Corrupt 3 | . 3 . . . . Melee Attacks . | . . . . . . Impact . | . . . . . . Slashing . | . . . . . . Piercing . | . . . . . . Sneak Attacks . | . . . . . . Combat Hostiles . | . . . . . . Follow-up Attacks . | . . . . . . Damage Inflicted 3153 | . 1155 591 . 528 879 Guns 1139 | . 924 215 . . . Cannons 1407 | . . . . 528 879 Explosions 607 | . 231 376 . . . Melee . | . . . . . . Ramming . | . . . . . . Kinetic 566 | . 351 215 . . . Thermal 1805 | . 398 . . 528 879 Explosive 376 | . . 376 . . . Electromagnetic 406 | . 406 . . . . Impact . | . . . . . . Slashing . | . . . . . . Piercing . | . . . . . . Highest Corruption 2 | . 2 2 2 2 . Average Corruption 2 | . 2 2 2 2 . Corruption Purged . | . . . . . . Corruption Blocked . | . . . . . . Effects 15 | . 5 4 2 4 . Message Errors 3 | . . 2 . 1 . Matter Fused 2 | . 1 . 1 . . Energy Discharges 4 | . 2 . . 2 . Data Loss (minor) 5 | . 2 2 . 1 . Data Loss (major) 1 | . . . 1 . . Overload Shots . | . . . . . . Overflow Damage 102 | . . . . 56 46 Projectiles 102 | . . . . 56 46 Explosions . | . . . . . . Melee . | . . . . . . Knockbacks . | . . . . . . Impact . | . . . . . . Kinetic . | . . . . . . Secondary . | . . . . . . Self-Inflicted Damage 59 | . . 59 . . . Shots 4 | . . 4 . . . Rammed . | . . . . . . Targets Rammed . | . . . . . . Kicked . | . . . . . . Crushed . | . . . . . . Highest Temperature 396 | . 90 7 . 396 336 Average Temperature 124 | . 56 7 . 169 159 Received Heat Transfer 608 | . 282 56 . 45 225 Effects 1 | . . . . . 1 Shutdowns 1 | . . . . . 1 Siege Activations . | . . . . . . Robots Corrupted . | . . . . . . Combat Hostiles . | . . . . . . Parts Fried 3 | . 3 . . . . Impact Corruptions . | . . . . . . Robots Melted 2 | . . . . 1 1 Combat Hostiles 2 | . . . . 1 1 Parts Melted 7 | . 1 . . 4 2 Heat Transferred 3611 | . 731 . . 1200 1680 Parts Sabotaged . | . . . . . . Parts Stolen . | . . . . . . Parts Stripped . | . . . . . . Power Chain Reactions 3 | . 3 . . . . Alert | -11 -10 -10 -10 -9 -8 ------- Run | Yrd Mat Min Exi Min Mat Peak Influence 408 | . 408 344 . 145 161 Initial 88 | . . 88 . . 56 Average 193 | . 251 219 . 108 97 Maximum Alert Level 2 | . 2 1 . . . Low Security (%) 54 | 100 22 52 . 100 100 Level 1 44 | . 75 47 . . . Level 2 . | . 1 . . . . Level 3 . | . . . . . . Level 4 . | . . . . . . Level 5 . | . . . . . . High Security . | . . . . . . Max Security . | . . . . . . Squads Dispatched 3 | . 2 1 . . . Investigation 2 | . 1 1 . . . Extermination . | . . . . . . Reinforcement 1 | . 1 . . . . Assault . | . . . . . . Garrison . | . . . . . . Intercept . | . . . . . . Searches Triggered . | . . . . . . Construction Impeded . | . . . . . . Haulers Reinforced . | . . . . . . Active Scanning Responses . | . . . . . . Cargo Convoy Interrupts . | . . . . . . Stealth | -11 -10 -10 -10 -9 -8 --------- Run | Yrd Mat Min Exi Min Mat Distress Signals . | . . . . . . Communications Jammed . | . . . . . . Distress Signals . | . . . . . . Times Spotted 61 | . 16 30 . 4 11 Peak Tracking Total 11 | . 3 11 . 3 7 Tactical Retreats 3 | . 1 2 . . . Traps | -11 -10 -10 -10 -9 -8 ------- Run | Yrd Mat Min Exi Min Mat Traps Triggered . | . . . . . . Indirectly . | . . . . . . Trap Hack Attempts . | . . . . . . Triggered . | . . . . . . Disarmed 5 | . 5 . . . . Reprogrammed . | . . . . . . Reused . | . . . . . . Traps Extracted . | . . . . . . Installed . | . . . . . . Triggered . | . . . . . . Machines | -11 -10 -10 -10 -9 -8 ---------- Run | Yrd Mat Min Exi Min Mat Machines Disabled 2 | . 2 . . . . Max in Single Turn 1 | . 1 . . . . Machines Repaired . | . . . . . . Machines Dismantled . | . . . . . . Machines Sabotaged . | . . . . . . Overloaded Fab Kills . | . . . . . . Hacking | -11 -10 -10 -10 -9 -8 --------- Run | Yrd Mat Min Exi Min Mat Machines Accessed 7 | . 5 1 . . 1 Terminals 5 | . 4 . . . 1 Fabricators . | . . . . . . Repair Stations . | . . . . . . Recycling Units 1 | . 1 . . . . Scanalyzers . | . . . . . . Garrison Access . | . . . . . . Total Hacks 19 | . 15 1 . . 3 Successful 14 | . 11 1 . . 2 Failed 5 | . 4 . . . 1 Catastrophic . | . . . . . . Database Lockouts . | . . . . . . Manual 2 | . 1 . 1 . . Terminals 17 | . 14 . . . 3 Fabricators . | . . . . . . Repair Stations . | . . . . . . Recycling Units 1 | . 1 . . . . Scanalyzers . | . . . . . . Garrison Access . | . . . . . . Terminal Hacks 13 | . 10 1 . . 2 Robot Analysis 1 | . . . . . 1 Open Door 1 | . . 1 . . . Level Access Points 1 | . 1 . . . . Emergency Access Points 1 | . 1 . . . . Alert Level 4 | . 4 . . . . Locate Traps 2 | . 2 . . . . Disarm Traps 1 | . 1 . . . . Hauler Manifests 1 | . 1 . . . . Registered Components 1 | . . . . . 1 Fabricator Hacks . | . . . . . . Repair Station Hacks . | . . . . . . Recycling Unit Hacks 1 | . 1 . . . . Report Inventory 1 | . 1 . . . . Scanalyzer . | . . . . . . Garrison Access Hacks . | . . . . . . Unauthorized Hacks . | . . . . . . Terminals . | . . . . . . Fabricators . | . . . . . . Repair Stations . | . . . . . . Recycling Units . | . . . . . . Scanalyzers . | . . . . . . Garrison Access . | . . . . . . Data Cores Recovered 1 | . . . . . 1 Used . | . . . . . . Hacking Detections 5 | . 4 . . . 1 Full Trace Events 2 | . 2 . . . . Feedback Events . | . . . . . . Feedback Blocked . | . . . . . . Robot Schematics Acquired . | . . . . . . Robots Built . | . . . . . . Authchips . | . . . . . . Time . | . . . . . . Total Robot Build Rating . | . . . . . . Part Schematics Acquired . | . . . . . . Parts Built . | . . . . . . Authchips . | . . . . . . Time . | . . . . . . Total Part Build Rating . | . . . . . . Parts Repaired . | . . . . . . Time . | . . . . . . Parts Recycled . | . . . . . . Recycled Matter . | . . . . . . Retrieved Matter . | . . . . . . Retrieved Components . | . . . . . . Parts Scanalyzed . | . . . . . . Part Schematics Acquired . | . . . . . . Parts Damaged . | . . . . . . Bothacking | -11 -10 -10 -10 -9 -8 ------------ Run | Yrd Mat Min Exi Min Mat Used RIF Installer . | . . . . . . Robots Hacked . | . . . . . . Non-combat . | . . . . . . Combat . | . . . . . . Robot Hacks Applied . | . . . . . . Relay Couplers Released . | . . . . . . Fabnet Peak Effective % . | . . . . . . Robots Rewired . | . . . . . . Allies Hacked . | . . . . . . Hacks Repelled . | . . . . . . Allies | -11 -10 -10 -10 -9 -8 -------- Run | Yrd Mat Min Exi Min Mat Total Allies . | . . . . . . Largest Group . | . . . . . . Highest-Rated Group . | . . . . . . Highest-Rated Ally . | . . . . . . Total Orders . | . . . . . . Ally Attacks . | . . . . . . Total Damage . | . . . . . . Kills . | . . . . . . Allies Corrupted . | . . . . . . Allies Melted . | . . . . . . Intel | -11 -10 -10 -10 -9 -8 ------- Run | Yrd Mat Min Exi Min Mat Robot Analysis Total 1 | . . . . . 1 Derelict Logs Recovered 2 | . . 1 . 1 . Drone Launches . | . . . . . . Drone Recoveries . | . . . . . . Exploration | -11 -10 -10 -10 -9 -8 ------------- Run | Yrd Mat Min Exi Min Mat Turns Passed 1231 | 24 466 262 157 195 127 Spaces Moved 1394 | 37 509 382 210 174 82 Core 1394 | 37 509 382 210 174 82 Treads . | . . . . . . Legs . | . . . . . . Wheels . | . . . . . . Hover . | . . . . . . Flight . | . . . . . . Fastest Speed 50 | 50 50 50 50 50 50 Average Speed 61 | 50 50 50 73 90 98 Slowest Speed 100 | 50 50 50 100 100 100 Overloaded Moves . | . . . . . . Propulsion Burnouts . | . . . . . . Robots Hopped . | . . . . . . Cave-ins Triggered . | . . . . . . Exploration Rate (%) 44 | 4 76 72 61 45 11 Regions Visited 5 Branch Regions 3 Pre-discovered Areas 2 | . . 2 . . . Known Exits Taken . | . . . . . . Unknown Exits Taken 5 | 1 1 1 1 1 . Scrap Searched 3 | . . 1 . 2 . Spaces Dug . | . . . . . . Terrain Destroyed 78 | . 16 62 . . . Melee . | . . . . . . Projectile . | . . . . . . AOE 78 | . 16 62 . . . Terrain Rammed . | . . . . . . Walls Destroyed . | . . . . . . Machines Disabled . | . . . . . . Actions | -11 -10 -10 -10 -9 -8 --------- Run | Yrd Mat Min Exi Min Mat Total 1574 | 41 598 418 213 195 109 Wait 9 | . 4 1 . 4 . Move 1389 | 36 508 381 209 173 82 Hop . | . . . . . . Pick Up 11 | 2 4 3 1 . 1 Fast Attach 3 | 1 1 . . 1 . Attach 4 | 2 1 1 . . . Detach . | . . . . . . Swap 5 | . 2 . 1 . 2 Drop 8 | . 2 1 2 . 3 Fire 123 | . 61 26 . 15 21 Melee . | . . . . . . Ram . | . . . . . . Kick . | . . . . . . Crush . | . . . . . . Escape Stasis . | . . . . . . Rewire . | . . . . . . Trap . | . . . . . . Miscellaneous 22 | . 15 5 . 2 . Route ------- -11/Scrapyard -10/Materials (discovered 4 exits: *Mat x3 / *Min) -10/Mines (discovered 2 exits: *Mat / *Exi) -10/Exiles -9/Mines -8/Materials (discovered 2 exits: Fac x2) History --------- Turn | Location | Event 1 | -11/Scrapyard | Upgraded with Utility slot (x2) 1 | -11/Scrapyard | Upgraded with Weapon slot (x1) 17 | -11/Scrapyard | Discovered new exit (range 14) 25 | -11/Scrapyard | Entered Materials 154 | -10/Materials | Discovered new exit (range 11) 243 | -10/Materials | Discovered new exit (range 9) 281 | -10/Materials | Identified exit to Materials 312 | -10/Materials | Build established: Mutant 359 | -10/Materials | Discovered new exit (range 7) 443 | -10/Materials | Reached level 2 491 | -10/Materials | Entered Mines 553 | -10/Mines | Assembled infested the area 592 | -10/Mines | Core integrity fell below 50% 603 | -10/Mines | Met a Derelict shopkeep closing up shop 621 | -10/Mines | Core integrity fell below 20% 675 | -10/Mines | Learned location of Storage (-7) 706 | -10/Mines | Learned location of Mines (-9) 734 | -10/Mines | Discovered exit to Materials (range 7) 738 | -10/Mines | YI-UF0 nonchalantly dropped a Grenade Launcher on the ground 741 | -10/Mines | A weapon hastily lodged in a ceiling crevice suddenly fell to the ground 750 | -10/Mines | Deemed a non-threat by the Exiles lab entrance 751 | -10/Mines | Discovered new exit (range 5) 753 | -10/Mines | Entered Exiles 755 | -10/Exiles | Reached level 3 755 | -10/Exiles | Upgraded with Utility slot (x1) 766 | -10/Exiles | Met 8R-AWN 775 | -10/Exiles | Met EX-HEX 788 | -10/Exiles | Met EX-BIN 795 | -10/Exiles | Aligned with FarCom system 796 | -10/Exiles | Given EX-Vault access code 807 | -10/Exiles | Opened EX-Vault 811 | -10/Exiles | Found Prototype Energy Cannon 812 | -10/Exiles | Identified Gui. Plasma Cannon 837 | -10/Exiles | Warned to stay clear of 0b10 Research branches 863 | -10/Exiles | Met EX-DEC 898 | -10/Exiles | Discovered new exit (range 14) 910 | -10/Exiles | Left Exiles lab with Gui. Plasma Cannon 910 | -10/Exiles | Entered Mines 991 | -9/Mines | Reached level 4 1075 | -9/Mines | Learned location of 2 exits from Materials 1091 | -9/Mines | Discovered new exit (range 15) 1105 | -9/Mines | Entered Materials 1106 | -8/Materials | Identified exit to Factory 1106 | -8/Materials | Core integrity fell below 50% 1106 | -8/Materials | Core integrity fell below 20% 1107 | -8/Materials | Reached level 5 1232 | -8/Materials | Destroyed by G-47 Trooper with Particle Gun Last Messages --------------- 89HGZPR11P: Structural Scanner UOESDAHZ4C: EM Pulse Cannon UD99S0VTCB: Imp. Weapon Shielding Downloaded coordinate data. K-01 Serf collects debris. Critical hit (Burn: +37). G-50 Soldier destroyed. K-01 Serf collects debris. Critical hit (Burn: +37). K-01 Serf collects debris. G-47 Trooper heat damages Aluminum Leg. K-01 Serf collects debris. Destroyed Lgt. Nuclear Core. Power failure, Lgt. Nuclear Core shutdown. G-47 Trooper critical meltdown. Imp. Heat Sink melted. Med. Armor Plating destroyed. Critical hit (Burn: +37). G-47 Trooper destroyed. K-01 Serf collects debris. Map ----- +----------------------------------------------------+ | ????????????# ## """ [#??????? | | ????????????# ## #??????? | | ????????????# ####+######??????? | | ??####??????# #### ###?????????? | | ??? ??????# =[ #?????????? | | ???? ?????# [[ #?????????? | | ????? ?????# #?????????? | | ?????# ????# ^ ###########? | | ?????# ????# ^^ ## !?? | | ?????# ???# ^""" ## """ ?? | | ?????# #### """ % ## """ ?? | | ?????# /// """ # """ #? | | ???? + =/%%/= / """ #? | | ?????# %=%!/ # " #? | | ?????# ########### # T #? | | ?????# ??????????# # " #? | | ?????# ???????????# # #? | | ?????# ????????????# ##+#######? | | ?????#?????????????# #??????? | | ???????????????????# #??????? | | ???????????????????# #??????? | | ???????????????????# #??????? | | ???????????????????# #???? # | | ???????????????????# #?? # | | ???????????????????# # ! # | | ???????????????????# k @/! # | | ???????????????????# # ! # | | ?????????##+######## #??t # | | ????? %g g #???? # | | ????? Y=%% gg %= #??????? | | ????? ##+####### ##+###??????? | | ??????????????????# #!% ????????? | | ??????????????????# # """???????? | | ??????????????????#### "R ??????? | | ?????????????????????# """ ??????? | | ?????????????????????# "?????? | | ?????????????????????# ? ""????? | | ?????????????????????# ????""????? | | ?????????????????????# ??????????? | | ??????????????????????#??????????? | | ?????????????????????????????????? | | | | | | | | | | | | | | | | | | | +----------------------------------------------------+ Best States ------------- Heat Dissipation 57 Energy Generation 19 Energy Capacity 250 Matter Stores 300 Matter Capacity 300 Sight Range 16 Robot Scan Range 2 Terrain Scan Density 10 Armor Coverage 225 Resistance: KI 5 Resistance: TH 5 Resistance: EX 5 Evasion (%) 50 Offensive Hacking 15 Item Schematics ----------------- None Robot Schematics ------------------ None Fabricated ------------ Nothing Alien Tech Used ----------------- None Achievements -------------- None Challenges ------------ None RPGLIKE | -11 -10 -10 -10 -9 -8 --------- Run | Yrd Mat Min Exi Min Mat Levels Raised 4 | . 1 . 1 1 1 XP Earned 9449 | 3000 1514 1450 350 1200 1935 XP Spent 8985 | 2960 1495 . 1455 1420 1655 Upgrades 28 | 9 6 . 4 4 5 Utility Slot 3 | 2 . . 1 . . Weapon Slot 1 | 1 . . . . . Core Integrity 5 | 2 1 . 1 . 1 Heat Dissipation 3 | . 1 . . 1 1 Energy Generation 1 | . 1 . . . . Mass Support 3 | 2 . . . 1 . Inventory Capacity 2 | 1 1 . . . . Sensor Range 1 | . . . . 1 . Ranged Accuracy 1 | . 1 . . . . Hack Attack % 1 | . . . . . 1 KI Resistance % 1 | 1 . . . . . TH Resistance % 1 | . . . 1 . . EX Resistance % 1 | . . . 1 . . KI Damage % 1 | . 1 . . . . TH Damage % 3 | . . . . 1 2 Protomatter Created 291 | . 248 34 . 9 . Integrity Restored 414 | . 309 78 . 27 . Core 394 | . 289 78 . 27 . Parts 20 | . 20 . . . . Protomatter Decayed 186 | . 143 43 . . . Game ------ Seed PowerGreatLattice Manual? 0 Play Time 00:25:41 Cumulative 19.6 hours Start 2024.08.12 @ 07:18:25 End 2024.08.12 @ 07:44:08 Sessions 1 Manual Loads 0 Difficulty Rogue Special Mode Winter2019/RPGLIKE Game No. 43 Rogue 43 Adventurer 0 Explorer 0 Win Type - Total 0 Types 0/0/0/0/0/0/0/0/0 Lore% 14 Gallery% 24 Achievement% 20 Wizard Run 0 Options --------- Layout 1 ASCII 0 Keyboard 0 Movement Mouse Keybinds 0 Fullscreen 1 Font 24/Smallcaps Map View 50x40 Zoom Use 0% Tactical HUD 0 Map Filters NONE Filters NONE Steam 1 RUN: ee8f1576-e208-4e73-b410-689f630106f7